[Event "Early-Titled-Tuesday-Blitz-October-17-2023"]
[Site "Chess.com"]
[Date "2023.10.17"]
[Round "7"]
[White "Witik"]
[Black "kirillshevchenko"]
[Result "1-0"]
[WhiteElo "2828"]
[BlackElo "2921"]
[TimeControl "180+1"]
[EndTime "9:21:42 PDT"]
[Termination "Witik won by checkmate"]

1. e4 {[%clk 0:02:59.7]} 1... e5 {[%clk 0:02:58.3]} 2. Nf3 {[%clk 0:02:58.8]}
2... Nc6 {[%clk 0:02:59]} 3. Nc3 {[%clk 0:02:57.6]} 3... Nf6 {[%clk 0:02:57.6]}
4. Bb5 {[%clk 0:02:57.6]} 4... Nd4 {[%clk 0:02:56.9]} 5. Bc4 {[%clk 0:02:57.5]}
5... c6 {[%clk 0:02:30.9]} 6. O-O {[%clk 0:02:56.7]} 6... b5 {[%clk 0:02:29.8]}
7. Bb3 {[%clk 0:02:33.8]} 7... a5 {[%clk 0:02:23.4]} 8. Nxe5 {[%clk 0:02:16.9]}
8... Qe7 {[%clk 0:02:04]} 9. Nf3 {[%clk 0:02:04.2]} 9... Nxf3+ {[%clk
0:01:56.8]} 10. Qxf3 {[%clk 0:02:04.2]} 10... a4 {[%clk 0:01:57.7]} 11. e5
{[%clk 0:01:54.3]} 11... Qxe5 {[%clk 0:01:52.3]} 12. d4 {[%clk 0:01:54.2]} 12...
Qh5 {[%clk 0:01:06.5]} 13. Re1+ {[%clk 0:01:50.2]} 13... Be7 {[%clk 0:01:06.8]}
14. Qg3 {[%clk 0:01:11.5]} 14... Qg6 {[%clk 0:00:37.7]} 15. Qd6 {[%clk
0:00:42.3]} 15... O-O {[%clk 0:00:37.3]} 16. Rxe7 {[%clk 0:00:35.1]} 16... axb3
{[%clk 0:00:36.8]} 17. cxb3 {[%clk 0:00:33.1]} 17... Qc2 {[%clk 0:00:22.2]} 18.
Re2 {[%clk 0:00:20.8]} 18... Qf5 {[%clk 0:00:18.3]} 19. Bf4 {[%clk 0:00:18.4]}
19... b4 {[%clk 0:00:17.3]} 20. Na4 {[%clk 0:00:15.5]} 20... Ba6 {[%clk
0:00:14.8]} 21. Ree1 {[%clk 0:00:11.6]} 21... Rfe8 {[%clk 0:00:14.7]} 22. Re5
{[%clk 0:00:08.2]} 22... Qc2 {[%clk 0:00:10.8]} 23. Nc5 {[%clk 0:00:05.6]} 23...
Bb5 {[%clk 0:00:10]} 24. Rae1 {[%clk 0:00:05.8]} 24... Rf8 {[%clk 0:00:09.5]}
25. h3 {[%clk 0:00:04.9]} 25... Qxb2 {[%clk 0:00:06.3]} 26. Bg5 {[%clk
0:00:05.1]} 26... Nd5 {[%clk 0:00:06.5]} 27. Nxd7 {[%clk 0:00:05.3]} 27... f6
{[%clk 0:00:04.2]} 28. Nxf8 {[%clk 0:00:04.7]} 28... Rxf8 {[%clk 0:00:05.1]} 29.
Re8 {[%clk 0:00:05]} 29... Rxe8 {[%clk 0:00:04.6]} 30. Rxe8+ {[%clk 0:00:05.2]}
30... Kf7 {[%clk 0:00:05.5]} 31. Qd7+ {[%clk 0:00:04.4]} 31... Kg6 {[%clk
0:00:05.7]} 32. Bh4 {[%clk 0:00:03.5]} 32... Qc1+ {[%clk 0:00:04.5]} 33. Kh2
{[%clk 0:00:04.2]} 33... Qf4+ {[%clk 0:00:04]} 34. Bg3 {[%clk 0:00:04.9]} 34...
Qxd4 {[%clk 0:00:04.9]} 35. Re1 {[%clk 0:00:03.3]} 35... Qc5 {[%clk 0:00:02.4]}
36. Qe8+ {[%clk 0:00:03.4]} 36... Kh6 {[%clk 0:00:03.1]} 37. Re4 {[%clk
0:00:04]} 37... g5 {[%clk 0:00:03]} 38. Qf7 {[%clk 0:00:03.4]} 38... Nf4 {[%clk
0:00:01.9]} 39. Rxf4 {[%clk 0:00:03.2]} 39... Qe5 {[%clk 0:00:01.4]} 40. Rxf6+
{[%clk 0:00:03]} 40... Qxf6 {[%clk 0:00:02.3]} 41. Qxf6+ {[%clk 0:00:03.3]}
41... Kh5 {[%clk 0:00:03.2]} 42. Be5 {[%clk 0:00:03.6]} 42... h6 {[%clk
0:00:04.1]} 43. g4+ {[%clk 0:00:03.8]} 43... Kh4 {[%clk 0:00:05]} 44. Bg3#
{[%clk 0:00:04.1]} 1-0

[Event "Early-Titled-Tuesday-Blitz-October-17-2023"]
[Site "Chess.com"]
[Date "2023.10.17"]
[Round "7"]
[White "bazar-wokzal"]
[Black "DreamsAreFake"]
[Result "1/2-1/2"]
[WhiteElo "2584"]
[BlackElo "2741"]
[TimeControl "180+1"]
[EndTime "9:21:43 PDT"]
[Termination "Game drawn - insufficient material"]

1. e4 {[%clk 0:03:00.9]} 1... c6 {[%clk 0:02:57.3]} 2. d4 {[%clk 0:03:00.4]}
2... d5 {[%clk 0:02:57.8]} 3. f3 {[%clk 0:03:00.8]} 3... e6 {[%clk 0:02:57.3]}
4. Nc3 {[%clk 0:03:00.2]} 4... Bb4 {[%clk 0:02:57.8]} 5. Be3 {[%clk 0:02:59.5]}
5... Ne7 {[%clk 0:02:58.5]} 6. Bd3 {[%clk 0:02:58.8]} 6... Nd7 {[%clk 0:02:59]}
7. Ne2 {[%clk 0:02:57.4]} 7... O-O {[%clk 0:02:58.8]} 8. O-O {[%clk 0:02:57.2]}
8... e5 {[%clk 0:02:46.4]} 9. exd5 {[%clk 0:02:55.2]} 9... cxd5 {[%clk
0:02:47.3]} 10. Ng3 {[%clk 0:02:43.4]} 10... Bxc3 {[%clk 0:02:35.2]} 11. bxc3
{[%clk 0:02:43.2]} 11... Qc7 {[%clk 0:02:36]} 12. Qd2 {[%clk 0:02:41]} 12... Nc6
{[%clk 0:02:06.8]} 13. Rae1 {[%clk 0:02:29.3]} 13... Re8 {[%clk 0:02:05.6]} 14.
Nh5 {[%clk 0:02:14.6]} 14... g6 {[%clk 0:01:58.7]} 15. Bh6 {[%clk 0:02:08.2]}
15... Qd8 {[%clk 0:01:55.4]} 16. Ng3 {[%clk 0:01:50.7]} 16... Nf8 {[%clk
0:01:43]} 17. dxe5 {[%clk 0:01:42.2]} 17... Nxe5 {[%clk 0:01:42.3]} 18. Bg5
{[%clk 0:01:33.4]} 18... f6 {[%clk 0:01:41]} 19. Be3 {[%clk 0:01:29.8]} 19...
Be6 {[%clk 0:01:39.5]} 20. Bd4 {[%clk 0:01:28.1]} 20... Nc6 {[%clk 0:01:38.1]}
21. f4 {[%clk 0:01:27]} 21... Nxd4 {[%clk 0:01:34.5]} 22. cxd4 {[%clk
0:01:26.8]} 22... f5 {[%clk 0:01:35.2]} 23. Re2 {[%clk 0:01:16.8]} 23... Qb6
{[%clk 0:01:28.9]} 24. c3 {[%clk 0:01:15.9]} 24... Nd7 {[%clk 0:01:28.5]} 25.
Rfe1 {[%clk 0:01:15.9]} 25... Bf7 {[%clk 0:01:26.1]} 26. h4 {[%clk 0:01:15.8]}
26... Nf6 {[%clk 0:01:25.7]} 27. h5 {[%clk 0:01:15.4]} 27... Ne4 {[%clk
0:01:25.5]} 28. Bxe4 {[%clk 0:01:13.8]} 28... dxe4 {[%clk 0:01:25.4]} 29. hxg6
{[%clk 0:01:12.5]} 29... hxg6 {[%clk 0:01:26.3]} 30. Nf1 {[%clk 0:01:07.9]}
30... Bc4 {[%clk 0:01:11.9]} 31. Re3 {[%clk 0:01:07.3]} 31... Rac8 {[%clk
0:01:11.4]} 32. g4 {[%clk 0:01:05.8]} 32... Qa5 {[%clk 0:01:11.2]} 33. Rg3
{[%clk 0:01:02.1]} 33... Kf7 {[%clk 0:01:02.9]} 34. Ne3 {[%clk 0:01:01.6]} 34...
Qxa2 {[%clk 0:00:58.1]} 35. Qxa2 {[%clk 0:00:53.8]} 35... Bxa2 {[%clk 0:00:59]}
36. gxf5 {[%clk 0:00:54.3]} 36... gxf5 {[%clk 0:00:57.8]} 37. Nxf5 {[%clk
0:00:54.7]} 37... Rcd8 {[%clk 0:00:53]} 38. Ra1 {[%clk 0:00:53.4]} 38... Be6
{[%clk 0:00:50.2]} 39. Nh6+ {[%clk 0:00:50.3]} 39... Kf6 {[%clk 0:00:49.7]} 40.
Rxa7 {[%clk 0:00:50]} 40... Rh8 {[%clk 0:00:49.7]} 41. f5 {[%clk 0:00:45.4]}
41... Bxf5 {[%clk 0:00:39.9]} 42. Nxf5 {[%clk 0:00:44.1]} 42... Kxf5 {[%clk
0:00:40.8]} 43. Rxb7 {[%clk 0:00:44.2]} 43... Kf4 {[%clk 0:00:30.4]} 44. Kg2
{[%clk 0:00:43.6]} 44... Rdf8 {[%clk 0:00:25.5]} 45. Rbg7 {[%clk 0:00:41.5]}
45... Rh4 {[%clk 0:00:23.6]} 46. d5 {[%clk 0:00:40.5]} 46... Ke5 {[%clk
0:00:22.8]} 47. c4 {[%clk 0:00:39.6]} 47... Kd4 {[%clk 0:00:22.6]} 48. d6 {[%clk
0:00:34.6]} 48... Kxc4 {[%clk 0:00:20.2]} 49. d7 {[%clk 0:00:34.7]} 49... Rd8
{[%clk 0:00:19.6]} 50. Re7 {[%clk 0:00:30.4]} 50... Kd4 {[%clk 0:00:18.9]} 51.
Rg6 {[%clk 0:00:28.3]} 51... Rh5 {[%clk 0:00:15.8]} 52. Rd6+ {[%clk 0:00:15.7]}
52... Rd5 {[%clk 0:00:15.3]} 53. Rxd5+ {[%clk 0:00:14.4]} 53... Kxd5 {[%clk
0:00:16.2]} 54. Kf2 {[%clk 0:00:14.9]} 54... Kd6 {[%clk 0:00:16.5]} 55. Rxe4
{[%clk 0:00:14.6]} 55... Rxd7 {[%clk 0:00:17.2]} 56. Rd4+ {[%clk 0:00:15.1]}
56... Kc6 {[%clk 0:00:18]} 57. Rxd7 {[%clk 0:00:15.7]} 57... Kxd7 {[%clk
0:00:18.9]} 1/2-1/2

[Event "Early-Titled-Tuesday-Blitz-October-17-2023"]
[Site "Chess.com"]
[Date "2023.10.17"]
[Round "7"]
[White "lamomiajunior"]
[Black "JuniorJumper"]
[Result "0-1"]
[WhiteElo "2727"]
[BlackElo "2587"]
[TimeControl "180+1"]
[EndTime "9:21:45 PDT"]
[Termination "JuniorJumper won by resignation"]

1. d4 {[%clk 0:03:00.9]} 1... d5 {[%clk 0:02:58]} 2. c4 {[%clk 0:03:00.9]} 2...
e6 {[%clk 0:02:58.3]} 3. Nc3 {[%clk 0:03:00.9]} 3... c6 {[%clk 0:02:59]} 4. e3
{[%clk 0:02:45.3]} 4... Nf6 {[%clk 0:02:58.1]} 5. Nf3 {[%clk 0:02:45.7]} 5...
Nbd7 {[%clk 0:02:58.7]} 6. Qc2 {[%clk 0:02:42.7]} 6... Bd6 {[%clk 0:02:57.9]} 7.
Be2 {[%clk 0:02:41.6]} 7... O-O {[%clk 0:02:57.5]} 8. O-O {[%clk 0:02:41.6]}
8... Qe7 {[%clk 0:02:58.2]} 9. b3 {[%clk 0:02:40]} 9... dxc4 {[%clk 0:02:53.8]}
10. bxc4 {[%clk 0:02:36.4]} 10... e5 {[%clk 0:02:54.2]} 11. Bb2 {[%clk
0:02:27.6]} 11... Re8 {[%clk 0:02:50.9]} 12. Rae1 {[%clk 0:02:26.1]} 12... e4
{[%clk 0:02:35.9]} 13. Nd2 {[%clk 0:02:25]} 13... Nf8 {[%clk 0:02:36.5]} 14. f3
{[%clk 0:02:19.4]} 14... exf3 {[%clk 0:02:31.9]} 15. Bxf3 {[%clk 0:02:19.7]}
15... Qc7 {[%clk 0:02:24.4]} 16. g3 {[%clk 0:01:50.3]} 16... Bxg3 {[%clk
0:02:14.7]} 17. hxg3 {[%clk 0:01:49.1]} 17... Qxg3+ {[%clk 0:02:15.6]} 18. Bg2
{[%clk 0:01:49.5]} 18... Ng4 {[%clk 0:01:55.8]} 19. Nf3 {[%clk 0:01:25.8]} 19...
Nxe3 {[%clk 0:01:54.6]} 20. Qf2 {[%clk 0:01:23.4]} 20... Qxf2+ {[%clk
0:01:22.9]} 21. Kxf2 {[%clk 0:01:16.2]} 21... Ng4+ {[%clk 0:01:21.8]} 22. Kg3
{[%clk 0:01:16.8]} 22... Bd7 {[%clk 0:01:06.4]} 23. Ne4 {[%clk 0:01:12.7]} 23...
Ng6 {[%clk 0:00:52.6]} 24. Nc5 {[%clk 0:01:10.9]} 24... Nf6 {[%clk 0:00:39.8]}
25. Ne5 {[%clk 0:01:06.9]} 25... Be6 {[%clk 0:00:29.4]} 26. Nxg6 {[%clk
0:00:39.9]} 26... hxg6 {[%clk 0:00:26.8]} 27. Nxe6 {[%clk 0:00:40.1]} 27... Rxe6
{[%clk 0:00:24.9]} 28. Rxe6 {[%clk 0:00:39.7]} 28... fxe6 {[%clk 0:00:25.8]} 29.
Re1 {[%clk 0:00:39.6]} 29... Kf7 {[%clk 0:00:23.4]} 30. Bh3 {[%clk 0:00:39.8]}
30... Re8 {[%clk 0:00:24.1]} 31. Kf4 {[%clk 0:00:36]} 31... Nh5+ {[%clk
0:00:18.7]} 32. Kg5 {[%clk 0:00:35.4]} 32... Nf6 {[%clk 0:00:19.4]} 33. Kf4
{[%clk 0:00:31.1]} 33... Nh5+ {[%clk 0:00:19.2]} 34. Ke5 {[%clk 0:00:31.6]}
34... Nf6 {[%clk 0:00:18.5]} 35. a4 {[%clk 0:00:28.2]} 35... Nd7+ {[%clk
0:00:17.5]} 36. Kd6 {[%clk 0:00:26.6]} 36... Nb6 {[%clk 0:00:16.6]} 37. Bxe6+
{[%clk 0:00:26.7]} 37... Rxe6+ {[%clk 0:00:13.3]} 38. Rxe6 {[%clk 0:00:22.6]}
38... Nxc4+ {[%clk 0:00:13.8]} 39. Kd7 {[%clk 0:00:20.6]} 39... Nb6+ {[%clk
0:00:12.6]} 40. Kd6 {[%clk 0:00:21]} 40... Nc8+ {[%clk 0:00:08]} 41. Kc7 {[%clk
0:00:20.3]} 41... Kxe6 {[%clk 0:00:07.8]} 42. Kxc8 {[%clk 0:00:20.9]} 42... b5
{[%clk 0:00:07.7]} 43. axb5 {[%clk 0:00:18.1]} 43... cxb5 {[%clk 0:00:07.9]} 44.
Kc7 {[%clk 0:00:18.7]} 44... Kd5 {[%clk 0:00:07.3]} 45. Kb7 {[%clk 0:00:16.7]}
45... b4 {[%clk 0:00:07.9]} 46. Kxa7 {[%clk 0:00:16.5]} 46... g5 {[%clk
0:00:08.5]} 47. Bc1 {[%clk 0:00:15]} 47... g4 {[%clk 0:00:09.2]} 48. Kb6 {[%clk
0:00:14.4]} 48... g3 {[%clk 0:00:08.3]} 49. Kb5 {[%clk 0:00:13.5]} 49... b3
{[%clk 0:00:09]} 50. Kb4 {[%clk 0:00:13.5]} 50... g2 {[%clk 0:00:09.7]} 51. Be3
{[%clk 0:00:14]} 51... b2 {[%clk 0:00:10.4]} 0-1

[Event "Early-Titled-Tuesday-Blitz-October-17-2023"]
[Site "Chess.com"]
[Date "2023.10.17"]
[Round "7"]
[White "HamedWafa4"]
[Black "Mystery2007"]
[Result "0-1"]
[WhiteElo "2591"]
[BlackElo "2470"]
[TimeControl "180+1"]
[EndTime "9:21:46 PDT"]
[Termination "Mystery2007 won by resignation"]

1. e4 {[%clk 0:02:59.3]} 1... a6 {[%clk 0:02:57.5]} 2. d4 {[%clk 0:02:58.1]}
2... e6 {[%clk 0:02:57.6]} 3. Nf3 {[%clk 0:02:57.4]} 3... d5 {[%clk 0:02:58.1]}
4. e5 {[%clk 0:02:56.9]} 4... c5 {[%clk 0:02:58.3]} 5. c3 {[%clk 0:02:56.1]}
5... Nc6 {[%clk 0:02:58.3]} 6. Bd3 {[%clk 0:02:55.3]} 6... Nh6 {[%clk
0:02:58.4]} 7. Bxh6 {[%clk 0:02:54.2]} 7... gxh6 {[%clk 0:02:58.4]} 8. O-O
{[%clk 0:02:54.3]} 8... f6 {[%clk 0:02:57.2]} 9. Nh4 {[%clk 0:02:48.6]} 9...
fxe5 {[%clk 0:02:52.5]} 10. Qh5+ {[%clk 0:02:47.8]} 10... Kd7 {[%clk 0:02:53.1]}
11. dxe5 {[%clk 0:02:46.1]} 11... Qg5 {[%clk 0:02:46.2]} 12. Qxg5 {[%clk
0:02:32.8]} 12... hxg5 {[%clk 0:02:47.1]} 13. Nf3 {[%clk 0:02:30.3]} 13... g4
{[%clk 0:02:45.1]} 14. Ng5 {[%clk 0:02:27.3]} 14... Nxe5 {[%clk 0:02:38.8]} 15.
Bc2 {[%clk 0:02:26.7]} 15... Be7 {[%clk 0:02:34.1]} 16. f4 {[%clk 0:02:20.9]}
16... gxf3 {[%clk 0:02:27.5]} 17. Nxf3 {[%clk 0:02:20.1]} 17... Nxf3+ {[%clk
0:02:14.8]} 18. Rxf3 {[%clk 0:02:21]} 18... b5 {[%clk 0:02:02.7]} 19. Nd2 {[%clk
0:02:15.8]} 19... Bb7 {[%clk 0:02:02.8]} 20. Rf7 {[%clk 0:02:10.8]} 20... h6
{[%clk 0:01:47.1]} 21. Nf3 {[%clk 0:01:57.8]} 21... Kd6 {[%clk 0:01:38.2]} 22.
Re1 {[%clk 0:01:54]} 22... Raf8 {[%clk 0:01:33.1]} 23. Ne5 {[%clk 0:01:53]}
23... Rhg8 {[%clk 0:01:27.4]} 24. b4 {[%clk 0:01:36.3]} 24... Rxf7 {[%clk
0:01:17.3]} 25. Nxf7+ {[%clk 0:01:34.9]} 25... Kd7 {[%clk 0:01:14.8]} 26. Nxh6
{[%clk 0:01:32.1]} 26... Rf8 {[%clk 0:01:06.7]} 27. a3 {[%clk 0:01:27.9]} 27...
d4 {[%clk 0:00:56.1]} 28. Rd1 {[%clk 0:01:13.1]} 28... e5 {[%clk 0:00:52.6]} 29.
Ng4 {[%clk 0:01:08.7]} 29... Bd6 {[%clk 0:00:49.2]} 30. bxc5 {[%clk 0:01:04.8]}
30... Bxc5 {[%clk 0:00:43.8]} 31. Nxe5+ {[%clk 0:01:04.6]} 31... Ke6 {[%clk
0:00:40]} 32. cxd4 {[%clk 0:01:01.8]} 32... Bxa3 {[%clk 0:00:34]} 33. Bb3+
{[%clk 0:00:54.9]} 33... Kd6 {[%clk 0:00:31.2]} 34. Nf7+ {[%clk 0:00:52.3]}
34... Kd7 {[%clk 0:00:28.6]} 35. h4 {[%clk 0:00:51.5]} 35... a5 {[%clk 0:00:21]}
36. h5 {[%clk 0:00:51]} 36... a4 {[%clk 0:00:21.1]} 37. Ba2 {[%clk 0:00:51.2]}
37... b4 {[%clk 0:00:20.9]} 38. Ne5+ {[%clk 0:00:51.6]} 38... Kd8 {[%clk
0:00:14.9]} 39. h6 {[%clk 0:00:47.2]} 39... b3 {[%clk 0:00:14.2]} 40. Bb1 {[%clk
0:00:47.7]} 40... Rg8 {[%clk 0:00:11]} 41. Rd2 {[%clk 0:00:41.6]} 41... Ke7
{[%clk 0:00:09.2]} 42. h7 {[%clk 0:00:41.3]} 42... Rd8 {[%clk 0:00:05.1]} 43.
Ng6+ {[%clk 0:00:40.7]} 43... Kd6 {[%clk 0:00:04.7]} 44. Rf2 {[%clk 0:00:39.2]}
44... Bb2 {[%clk 0:00:03.5]} 45. Rxb2 {[%clk 0:00:36]} 45... Kd5 {[%clk
0:00:02.9]} 46. Rf2 {[%clk 0:00:33.6]} 46... Kc4 {[%clk 0:00:02.3]} 47. Rf8
{[%clk 0:00:33]} 47... Rxf8 {[%clk 0:00:02.1]} 48. Nxf8 {[%clk 0:00:33.9]} 48...
a3 {[%clk 0:00:02.9]} 49. h8=Q {[%clk 0:00:33.1]} 49... a2 {[%clk 0:00:03.8]}
50. Bxa2 {[%clk 0:00:33.3]} 50... bxa2 {[%clk 0:00:03.7]} 51. Qg8+ {[%clk
0:00:33.6]} 51... Bd5 {[%clk 0:00:02.6]} 52. Qg3 {[%clk 0:00:19.3]} 52... a1=Q+
{[%clk 0:00:03.5]} 53. Kh2 {[%clk 0:00:19.7]} 53... Qxd4 {[%clk 0:00:04.2]} 54.
Qg8 {[%clk 0:00:19.5]} 54... Bxg8 {[%clk 0:00:03.7]} 0-1

[Event "Early-Titled-Tuesday-Blitz-October-17-2023"]
[Site "Chess.com"]
[Date "2023.10.17"]
[Round "7"]
[White "azikom"]
[Black "Manukyan_Artak"]
[Result "1-0"]
[WhiteElo "2624"]
[BlackElo "2477"]
[TimeControl "180+1"]
[EndTime "9:21:47 PDT"]
[Termination "azikom won by resignation"]

1. d4 {[%clk 0:03:00.6]} 1... Nf6 {[%clk 0:02:57.8]} 2. c4 {[%clk 0:03:00.2]}
2... e6 {[%clk 0:02:57.7]} 3. Nc3 {[%clk 0:03:00]} 3... Bb4 {[%clk 0:02:56.7]}
4. Qc2 {[%clk 0:03:00.5]} 4... d5 {[%clk 0:02:56.2]} 5. cxd5 {[%clk 0:02:57.8]}
5... exd5 {[%clk 0:02:57.1]} 6. Nf3 {[%clk 0:02:57.3]} 6... O-O {[%clk
0:02:56.3]} 7. a3 {[%clk 0:02:57.2]} 7... Be7 {[%clk 0:02:54.5]} 8. Bf4 {[%clk
0:02:53.9]} 8... c5 {[%clk 0:02:53.1]} 9. e3 {[%clk 0:02:53.8]} 9... c4 {[%clk
0:02:51.2]} 10. Be2 {[%clk 0:02:52]} 10... g6 {[%clk 0:02:48.3]} 11. O-O {[%clk
0:02:47.7]} 11... Bf5 {[%clk 0:02:48.3]} 12. Qd1 {[%clk 0:02:48.3]} 12... a6
{[%clk 0:02:47.8]} 13. a4 {[%clk 0:02:44.7]} 13... Nc6 {[%clk 0:02:45.9]} 14.
Ne5 {[%clk 0:02:42.3]} 14... Nb4 {[%clk 0:02:44.6]} 15. h3 {[%clk 0:02:28.3]}
15... Nd7 {[%clk 0:02:31.9]} 16. Bg4 {[%clk 0:02:19.5]} 16... Bxg4 {[%clk
0:02:25]} 17. Qxg4 {[%clk 0:02:19.8]} 17... f5 {[%clk 0:02:19.2]} 18. Qf3 {[%clk
0:02:18.1]} 18... Nxe5 {[%clk 0:02:15.3]} 19. dxe5 {[%clk 0:02:03.7]} 19... Qd7
{[%clk 0:02:04.1]} 20. Rfd1 {[%clk 0:02:02.5]} 20... Rfd8 {[%clk 0:01:57.1]} 21.
b3 {[%clk 0:02:00.7]} 21... cxb3 {[%clk 0:01:45.7]} 22. Rab1 {[%clk 0:02:00.1]}
22... Rac8 {[%clk 0:01:28.1]} 23. Rxb3 {[%clk 0:01:59.4]} 23... Rc4 {[%clk
0:01:28.8]} 24. g4 {[%clk 0:01:37.9]} 24... fxg4 {[%clk 0:01:17.9]} 25. hxg4
{[%clk 0:01:38.8]} 25... g5 {[%clk 0:01:18.2]} 26. Bg3 {[%clk 0:01:31.1]} 26...
Qxg4 {[%clk 0:01:05.1]} 27. Qxg4 {[%clk 0:01:14.6]} 27... Rxg4 {[%clk 0:01:06]}
28. Kg2 {[%clk 0:01:13.6]} 28... h5 {[%clk 0:01:01.6]} 29. Kh3 {[%clk
0:01:01.5]} 29... Kf7 {[%clk 0:00:57.4]} 30. Ne2 {[%clk 0:00:59.7]} 30... Rc4
{[%clk 0:00:48.2]} 31. Nd4 {[%clk 0:00:59.2]} 31... g4+ {[%clk 0:00:41.3]} 32.
Kg2 {[%clk 0:00:58.2]} 32... h4 {[%clk 0:00:41.8]} 33. Bf4 {[%clk 0:00:56.7]}
33... Kg6 {[%clk 0:00:37.8]} 34. Rh1 {[%clk 0:00:41.6]} 34... h3+ {[%clk
0:00:36.8]} 35. Kg3 {[%clk 0:00:39.8]} 35... Kh5 {[%clk 0:00:36.9]} 36. Nf5
{[%clk 0:00:27.1]} 36... Bf8 {[%clk 0:00:13.7]} 37. f3 {[%clk 0:00:26.4]} 37...
gxf3 {[%clk 0:00:12.2]} 38. Rxh3+ {[%clk 0:00:26.1]} 38... Kg6 {[%clk
0:00:12.7]} 39. Nd4 {[%clk 0:00:25.8]} 39... Bc5 {[%clk 0:00:10.2]} 40. Ne6
{[%clk 0:00:24.7]} 40... Rc8 {[%clk 0:00:08.3]} 41. Kxf3 {[%clk 0:00:23.6]}
41... Bf8 {[%clk 0:00:05.3]} 42. Rg3+ {[%clk 0:00:22.5]} 42... Kf5 {[%clk
0:00:03.8]} 43. Nd4+ {[%clk 0:00:22.3]} 43... Rxd4 {[%clk 0:00:03]} 44. exd4
{[%clk 0:00:22.3]} 44... Rc4 {[%clk 0:00:01.4]} 45. Rg5+ {[%clk 0:00:22.1]}
45... Ke6 {[%clk 0:00:01.8]} 46. Rg6+ {[%clk 0:00:21.8]} 46... Kf7 {[%clk
0:00:02.3]} 47. Rf6+ {[%clk 0:00:21.9]} 47... Ke8 {[%clk 0:00:02.9]} 48. Be3
{[%clk 0:00:21.6]} 48... Nc6 {[%clk 0:00:02.4]} 49. Rxb7 {[%clk 0:00:20.5]}
49... Nxd4+ {[%clk 0:00:02.9]} 50. Bxd4 {[%clk 0:00:20.7]} 50... Rxd4 {[%clk
0:00:03.8]} 51. Rb8+ {[%clk 0:00:20.6]} 51... Ke7 {[%clk 0:00:04.2]} 52. Rbxf8
{[%clk 0:00:20.9]} 52... Rxa4 {[%clk 0:00:03.9]} 53. R8f7+ {[%clk 0:00:21]} 1-0

[Event "Early-Titled-Tuesday-Blitz-October-17-2023"]
[Site "Chess.com"]
[Date "2023.10.17"]
[Round "7"]
[White "chessfatbear"]
[Black "Cayse"]
[Result "0-1"]
[WhiteElo "2795"]
[BlackElo "2900"]
[TimeControl "180+1"]
[EndTime "9:21:48 PDT"]
[Termination "Cayse won by resignation"]

1. d4 {[%clk 0:03:00.9]} 1... d5 {[%clk 0:02:59.8]} 2. Nf3 {[%clk 0:03:01.2]}
2... Nf6 {[%clk 0:02:59.6]} 3. Bf4 {[%clk 0:03:00.2]} 3... c5 {[%clk 0:02:58.3]}
4. e3 {[%clk 0:03:00.3]} 4... Nc6 {[%clk 0:02:58.4]} 5. Nbd2 {[%clk 0:03:00.4]}
5... e6 {[%clk 0:02:58.9]} 6. c3 {[%clk 0:02:59.7]} 6... Bd6 {[%clk 0:02:59.1]}
7. Bg3 {[%clk 0:02:59.9]} 7... O-O {[%clk 0:02:57.9]} 8. Bb5 {[%clk 0:02:58.6]}
8... Ne7 {[%clk 0:02:52.6]} 9. Bd3 {[%clk 0:02:51.8]} 9... Nf5 {[%clk
0:02:40.9]} 10. Bxf5 {[%clk 0:02:45.6]} 10... exf5 {[%clk 0:02:40.6]} 11. Bxd6
{[%clk 0:02:45.8]} 11... Qxd6 {[%clk 0:02:40.1]} 12. dxc5 {[%clk 0:02:46.7]}
12... Qxc5 {[%clk 0:02:40.3]} 13. O-O {[%clk 0:02:46.9]} 13... b6 {[%clk
0:02:40.2]} 14. Qa4 {[%clk 0:02:44.6]} 14... a5 {[%clk 0:02:34.6]} 15. Rfd1
{[%clk 0:02:39.6]} 15... Ba6 {[%clk 0:02:34.2]} 16. Qf4 {[%clk 0:02:35.3]} 16...
g6 {[%clk 0:02:32.2]} 17. Qh6 {[%clk 0:02:32.5]} 17... Rfe8 {[%clk 0:02:30.1]}
18. Nb3 {[%clk 0:02:30.1]} 18... Qf8 {[%clk 0:02:26.5]} 19. Qxf8+ {[%clk
0:02:29.7]} 19... Kxf8 {[%clk 0:02:27.4]} 20. a4 {[%clk 0:02:23.5]} 20... Rac8
{[%clk 0:02:24.2]} 21. Nbd4 {[%clk 0:02:22.9]} 21... Ne4 {[%clk 0:02:22.7]} 22.
Nd2 {[%clk 0:02:12.8]} 22... Nc5 {[%clk 0:02:18.6]} 23. b4 {[%clk 0:02:04.5]}
23... Nd3 {[%clk 0:01:59.1]} 24. bxa5 {[%clk 0:01:47.3]} 24... bxa5 {[%clk
0:01:58.7]} 25. Nb5 {[%clk 0:01:41.6]} 25... Bxb5 {[%clk 0:01:41.7]} 26. axb5
{[%clk 0:01:42.5]} 26... Rxc3 {[%clk 0:01:41.8]} 27. Rxa5 {[%clk 0:01:41.7]}
27... f4 {[%clk 0:01:37.8]} 28. b6 {[%clk 0:01:27.7]} 28... Nxf2 {[%clk
0:01:35.7]} 29. Rb1 {[%clk 0:00:48.9]} 29... fxe3 {[%clk 0:01:35]} 30. Nf3
{[%clk 0:00:35.7]} 30... Rb8 {[%clk 0:01:13.4]} 31. h4 {[%clk 0:00:26.9]} 31...
Ng4 {[%clk 0:01:07.9]} 32. Kf1 {[%clk 0:00:17.8]} 32... Kg7 {[%clk 0:00:32.7]}
33. Rxd5 {[%clk 0:00:15.4]} 33... Rb7 {[%clk 0:00:32.7]} 34. h5 {[%clk
0:00:14.1]} 34... Rc6 {[%clk 0:00:31.6]} 35. hxg6 {[%clk 0:00:11.6]} 35... hxg6
{[%clk 0:00:31.3]} 36. Rdb5 {[%clk 0:00:10.9]} 36... Rc2 {[%clk 0:00:31]} 37.
R1b2 {[%clk 0:00:06.9]} 37... Rc6 {[%clk 0:00:19.7]} 38. Ke2 {[%clk 0:00:05.5]}
38... f5 {[%clk 0:00:19.5]} 39. Nd4 {[%clk 0:00:05.3]} 39... Rd6 {[%clk
0:00:18.9]} 40. Nf3 {[%clk 0:00:02.6]} 40... Kf6 {[%clk 0:00:19.2]} 41. Rc2
{[%clk 0:00:02.7]} 41... Rbxb6 {[%clk 0:00:18.4]} 42. Rbc5 {[%clk 0:00:03.2]}
42... Ra6 {[%clk 0:00:18.2]} 43. Rc8 {[%clk 0:00:03]} 43... Ra7 {[%clk 0:00:17]}
44. Rf8+ {[%clk 0:00:03.1]} 44... Rf7 {[%clk 0:00:17.2]} 45. Rfc8 {[%clk
0:00:03.1]} 45... Rfd7 {[%clk 0:00:17.3]} 46. Rf8+ {[%clk 0:00:02.9]} 46... Kg7
{[%clk 0:00:17.1]} 47. Rfc8 {[%clk 0:00:02.9]} 47... Re7 {[%clk 0:00:16.8]} 48.
Rb8 {[%clk 0:00:02.7]} 48... Ne5 {[%clk 0:00:15.8]} 49. Ng5 {[%clk 0:00:02.5]}
49... Nc6 {[%clk 0:00:15.2]} 50. Rb6 {[%clk 0:00:01.9]} 50... Nd4+ {[%clk
0:00:15.2]} 51. Kd3 {[%clk 0:00:02.5]} 51... Rxb6 {[%clk 0:00:14.8]} 52. Kxd4
{[%clk 0:00:03.2]} 52... e2 {[%clk 0:00:15.1]} 53. Nf3 {[%clk 0:00:03.9]} 53...
e1=Q {[%clk 0:00:15]} 0-1